bitfinex-derivatives/quotes_ETHF0:USTF0_20250616
["timestamp","ask_amount","ask_price","bid_price","bid_amount"]
[1750033148091,1.75731588,2539.3,2539.2,0.06737406]
[1750033148289,1.75700517,2539.3,2539.2,0.06737406]
[1750033148889,0.78761,2538.9,2538.5,5.11750697]
[1750033149092,0.00590586,2539.0,2538.8,0.78762]
[1750033149294,0.00590586,2539.0,2538.9,0.78761]
[1750033149494,0.79348586,2539.0,2538.9,0.78761]
[1750033149698,0.00590586,2539.0,2538.9,0.78761]
[1750033149895,0.79348586,2539.0,2538.9,2.04801]
[1750033150199,0.00590586,2539.0,2538.9,2.04801]
[1750033151897,3.2078,2539.6,2538.9,9.4682]
[1750033152093,3.2078,2539.6,2539.5,5.24063697]
[1750033152295,3.9952,2539.6,2539.5,5.24063697]
[1750033152695,0.78743,2539.5,2539.2,5.20518103]
[1750033152896,4.00111586,2539.6,2539.2,0.75197406]
[1750033153101,0.78743,2539.5,2539.4,5.24064697]
[1750033153604,0.78743,2539.5,2539.4,4.45320697]
[1750033154003,0.78743,2539.5,2539.4,5.24066697]
[1750033154205,0.78743,2539.5,2539.4,4.45320697]
[1750033155207,0.78743,2539.5,2539.4,5.24066697]
[1750033156799,4.00111586,2539.6,2539.4,5.24066697]
[1750033156999,4.00111586,2539.6,2539.5,0.78743]
[1750033157199,3.21370586,2539.6,2539.5,0.78743]
[1750033157596,4.00110586,2539.6,2539.5,0.78743]
[1750033158097,3.21370586,2539.6,2539.5,0.78743]
[1750033158407,4.00110586,2539.6,2539.5,0.78743]
[1750033160503,3.21370586,2539.6,2539.5,0.78743]
[1750033160695,3.21370586,2539.6,2539.5,0.85480406]
[1750033161306,0.00590586,2539.6,2539.5,0.85480406]
[1750033161514,9.6538,2540.0,2539.9,0.7873]
[1750033161807,9.6538,2540.0,2539.5,5.23567406]
[1750033162011,0.7874,2539.6,2539.5,0.06737406]
[1750033162307,3.2078,2539.7,2539.5,0.06737406]
[1750033162308,3.99516,2539.7,2539.6,0.7874]
[1750033162810,0.78738,2539.7,2539.6,0.78738]
[1750033163013,0.78736,2539.8,2539.7,0.78735]
[1750033163212,0.78738,2539.7,2539.6,0.78738]
[1750033163700,0.78735,2539.8,2539.7,0.78735]
[1750033164106,0.00590586,2539.9,2539.8,0.78733]
[1750033164605,0.79320586,2539.9,2539.8,0.78733]
[1750033165310,0.78735,2539.8,2539.7,0.78735]
[1750033165910,0.7874,2539.6,2539.5,0.06737406]
[1750033166212,0.7874,2539.6,2539.1,0.00590586]
[1750033166213,0.78752,2539.2,2539.1,0.00590586]
[1750033166420,3.99532,2539.2,2539.1,0.00590586]
[1750033167509,0.78752,2539.2,2539.1,0.79345586]
[1750033168518,0.78752,2539.2,2539.1,0.00590586]
[1750033168816,11.5871,2539.5,2539.1,0.00590586]
[1750033169007,0.78752,2539.2,2539.1,0.79343586]
[1750033169309,0.78752,2539.2,2539.1,0.00590586]
[1750033169615,3.99532,2539.2,2539.1,0.00590586]
[1750033171203,3.99532,2539.2,2539.1,0.79345586]
[1750033171516,3.99532,2539.2,2539.1,0.00590586]
[1750033172013,3.99532,2539.2,2539.1,0.79345586]
[1750033172518,3.99532,2539.2,2539.1,0.00590586]
[1750033174116,3.99532,2539.2,2539.1,0.79345586]
[1750033174916,3.99532,2539.2,2539.1,0.00590586]
[1750033175119,3.99532,2539.2,2539.1,0.07327992]
[1750033175718,3.99532,2539.2,2539.1,0.86082992]
[1750033175918,3.99532,2539.2,2539.1,0.07327992]
[1750033176121,3.99532,2539.2,2539.1,0.86082992]
[1750033177612,0.78752,2539.2,2539.1,0.86082992]
[1750033178319,0.6329,2539.3,2539.2,0.78752]
[1750033178518,1.42039,2539.3,2539.2,0.78752]
[1750033179523,1.42039,2539.3,2539.1,0.76327992]
[1750033179524,3.99528,2539.4,2539.3,0.78749]
[1750033179814,3.2078,2539.4,2539.3,5.24069697]
[1750033180018,0.7875,2539.3,2539.2,0.7875]
[1750033180215,0.78752,2539.2,2539.1,0.07327992]
[1750033180417,0.7875,2539.3,2539.2,0.78749]
[1750033180625,0.7875,2539.3,2539.2,0.78752]
[1750033180919,3.99528,2539.4,2539.3,0.78749]
[1750033181625,3.2078,2539.4,2539.3,0.78749]
[1750033181922,3.2078,2539.4,2539.3,5.24069697]
[1750033182116,3.99526,2539.4,2539.3,5.24069697]
[1750033182422,0.78746,2539.4,2539.3,5.24069697]
[1750033182622,0.78746,2539.4,2539.3,4.45320697]
[1750033182822,0.78746,2539.4,2539.3,5.24069697]
[1750033183123,0.78746,2539.4,2539.3,4.45320697]
[1750033183625,0.78746,2539.4,2539.3,5.24069697]
[1750033183819,0.78746,2539.4,2539.3,4.45320697]
[1750033185730,0.78749,2539.3,2539.2,0.78751]
[1750033185917,0.78752,2539.2,2539.1,0.07327992]
[1750033186118,3.99532,2539.2,2539.1,0.07327992]
[1750033186326,6.28860716,2539.2,2539.1,0.07327992]
[1750033186514,3.99532,2539.2,2539.1,0.07327992]
[1750033186915,2.34411252,2540.0,2539.1,11.58427992]
[1750033187120,0.79320586,2539.9,2539.8,4.45320697]
[1750033187324,0.00590586,2539.9,2539.3,7.7756]
[1750033187522,0.00590586,2539.9,2539.4,0.78746]
[1750033187523,0.78741,2539.6,2539.4,0.78746]
[1750033187917,0.78741,2539.6,2539.5,0.78743]
[1750033188630,0.78744,2539.5,2539.2,5.77870697]
[1750033188834,0.78741,2539.6,2539.2,12.28970697]
[1750033189031,0.78741,2539.6,2539.4,0.78744]
[1750033190130,0.78741,2539.6,2539.5,0.78743]
[1750033190531,0.78741,2539.6,2539.4,0.78744]
[1750033191031,0.78741,2539.6,2539.5,5.24063697]
[1750033191328,0.78739,2539.7,2539.5,5.24063697]
[1750033191531,0.7874,2539.6,2539.5,5.24063697]
[1750033192030,4.5167,2539.8,2539.5,5.24063697]
[1750033192031,0.78738,2539.7,2539.5,5.24063697]
[1750033192726,5.30405,2539.8,2539.5,4.45320697]
[1750033192928,5.30405,2539.8,2539.7,0.78736]
[1750033193130,4.5167,2539.8,2539.7,0.78736]
[1750033193429,0.00590586,2539.9,2539.8,0.78733]
[1750033193731,0.79320586,2539.9,2539.7,0.78734]
[1750033193929,0.79320586,2539.9,2539.8,0.78733]
[1750033194235,0.79320586,2539.9,2539.8,0.85470406]
[1750033195233,0.00590586,2539.9,2539.8,0.85470406]
[1750033195530,0.79320586,2539.9,2539.8,0.85470406]
[1750033198030,0.79320586,2539.9,2539.8,0.06737406]
[1750033199331,1.76072996,2539.9,2539.8,0.06737406]
[1750033199829,0.79320586,2539.9,2539.8,0.06737406]
[1750033200536,0.79320586,2539.9,2539.8,5.30791103]
[1750033200937,0.79320586,2539.9,2539.8,4.52058103]
[1750033201136,0.79320586,2539.9,2539.8,0.06737406]
[1750033201637,0.79320586,2539.9,2539.8,3.27517406]
[1750033201835,3.2078,2540.7,2539.8,19.21638103]
[1750033202038,0.78699,2540.9,2540.6,4.45320697]
[1750033202230,4.481,2541.0,2540.8,4.45320697]
[1750033202432,4.481,2541.0,2540.8,5.24021697]
[1750033202627,4.481,2541.0,2540.9,0.78699]
[1750033202937,4.481,2541.0,2540.8,5.24020697]
[1750033203137,4.481,2541.0,2540.9,0.78699]
[1750033203536,0.00590586,2541.2,2540.9,0.78699]
[1750033203738,0.00590586,2541.2,2541.1,5.24013697]
[1750033204231,0.00590586,2541.2,2540.9,0.678]
[1750033204232,0.79283586,2541.2,2541.0,0.78695]
[1750033204431,0.79283586,2541.2,2541.1,0.78693]
[1750033205237,0.00590586,2541.2,2541.1,0.78693]
[1750033205440,0.00590586,2541.2,2541.0,0.78695]
[1750033205629,0.78695,2541.1,2541.0,0.78696]
[1750033205831,0.79282586,2541.2,2541.0,0.78696]
[1750033206134,0.00590586,2541.2,2541.1,0.78693]
[1750033207341,0.79282586,2541.2,2541.0,0.78694]
[1750033207733,0.79282586,2541.2,2541.1,0.78693]
[1750033208038,0.78693,2541.1,2541.0,0.78694]
[1750033208241,0.79282586,2541.2,2541.0,0.78694]
[1750033208631,0.79282586,2541.2,2540.9,0.74537406]
[1750033208632,0.79282586,2541.2,2541.1,0.78693]
[1750033209037,0.00590586,2541.2,2540.9,0.74537406]
[1750033209343,0.78696,2541.0,2540.9,0.06737406]
[1750033209938,2.09616,2541.0,2540.9,0.06737406]
[1750033210336,3.2078,2541.1,2540.9,0.06737406]
[1750033210543,3.99475,2541.1,2540.9,0.06737406]
[1750033210740,3.99475,2541.1,2540.9,0.85434406]
[1750033211339,3.2078,2541.1,2540.9,0.85434406]
[1750033211638,0.78696,2541.0,2540.9,0.06737406]
[1750033212045,2.13336,2541.0,2540.9,0.06737406]
[1750033212541,3.99475,2541.1,2541.0,0.78696]
[1750033212945,0.78696,2541.0,2540.9,5.30756103]
[1750033213342,0.78696,2541.0,2540.9,0.85435406]
[1750033214146,3.2078,2541.1,2541.0,0.78696]
[1750033214642,3.99473,2541.1,2541.0,0.78696]
[1750033214846,3.99473,2541.1,2540.9,5.30755103]
[1750033215039,3.99473,2541.1,2541.0,0.78696]
[1750033215440,0.78696,2541.0,2540.9,5.30756103]
[1750033215847,3.99474,2541.1,2541.0,0.78696]
[1750033216152,3.99474,2541.1,2540.9,5.30755103]
[1750033216951,3.99474,2541.1,2541.0,0.78696]
[1750033220841,3.99474,2541.1,2541.0,0.85433406]
[1750033222955,3.99474,2541.1,2541.0,3.08441079]
[1750033223250,3.2078,2541.1,2541.0,3.08441079]
[1750033223452,0.00590586,2541.2,2541.1,0.78693]
[1750033223953,0.79280586,2541.2,2541.1,0.78693]
[1750033226049,0.00590586,2541.2,2541.1,0.78693]
[1750033226255,3.8552,2541.5,2541.4,0.78684]
[1750033226455,3.8552,2541.5,2541.4,3.01691673]
[1750033226652,0.6474,2541.5,2541.4,3.01691673]
[1750033227659,1.43421,2541.5,2541.4,3.01691673]
[1750033230853,1.43421,2541.5,2541.4,2.23007673]
[1750033231049,1.43421,2541.5,2541.0,2.29745079]
[1750033231050,5.82226,2541.5,2541.0,2.29745079]
[1750033231257,0.78692,2541.2,2541.1,0.78692]
[1750033231759,0.78693,2541.1,2541.0,3.08440079]
[1750033233058,0.78693,2541.1,2541.0,0.06737406]
[1750033233455,3.07563209,2541.1,2541.0,0.06737406]
[1750033234258,1.75393209,2541.1,2541.0,3.08441079]
[1750033234559,1.75393209,2541.1,2541.0,2.29745079]
[1750033235861,3.07883209,2541.1,2541.0,2.29745079]
[1750033236565,3.07883209,2541.1,2541.0,0.06737406]
[1750033246480,0.78702,2540.8,2540.7,0.00590586]
[1750033246662,0.78721,2540.2,2540.1,0.78724]
[1750033246861,3.2078,2540.5,2540.0,2.88027673]
[1750033247062,3.99492,2540.5,2540.4,2.23007673]
[1750033247267,4.96202657,2540.5,2540.4,2.23007673]
[1750033247473,3.99492,2540.5,2540.4,2.23007673]
[1750033248478,3.99492,2540.5,2540.2,0.00590586]
[1750033248479,0.78718,2540.3,2540.2,0.00590586]
[1750033249179,1.46548,2540.3,2540.2,0.00590586]
[1750033252672,27.17698,2540.3,2540.2,0.00590586]
[1750033253978,0.7873,2539.9,2539.8,3.01738673]
[1750033255477,3.2078,2540.1,2539.8,2.23007673]
[1750033255780,3.2078,2540.1,2540.0,3.01734673]
[1750033256077,3.99504,2540.1,2540.0,3.01734673]
[1750033256279,3.2078,2540.1,2540.0,3.01734673]
[1750033256874,3.2078,2540.1,2540.0,4.31624673]
[1750033260984,6.456,2540.3,2540.2,0.78721]
[1750033261178,6.456,2540.3,2540.2,3.01728673]
[1750033261384,0.78717,2540.3,2540.2,3.01728673]
[1750033261988,25.13217,2540.4,2540.3,0.78717]
[1750033262178,0.78717,2540.3,2540.2,3.01725673]
[1750033262681,25.13216,2540.4,2540.3,0.78717]
[1750033262867,0.78724,2540.2,2540.1,3.01729673]
[1750033263273,0.78727,2540.0,2539.9,2.90597673]
[1750033263572,0.78727,2540.0,2539.9,3.69325673]
[1750033264378,0.78727,2540.0,2539.9,2.23007673]
[1750033264572,0.78727,2540.0,2539.9,3.01737673]
[1750033265390,0.78725,2540.1,2540.0,0.78724]
[1750033265682,0.78725,2540.1,2540.0,3.01731673]
[1750033265879,0.6431,2540.2,2540.1,0.78724]
[1750033266083,0.7872,2540.2,2540.1,0.78724]
[1750033267388,0.6792,2540.4,2540.0,2.23007673]
[1750033267389,0.78724,2540.1,2540.0,2.23007673]
[1750033267689,1.41094,2540.1,2540.0,3.01734673]
[1750033268787,1.41094,2540.1,2540.0,2.23007673]
[1750033269988,0.6237,2540.1,2539.8,1.42981]
[1750033270193,1.96826,2539.9,2539.6,0.66610586]
[1750033270395,0.78736,2539.7,2539.6,0.00590586]
[1750033271288,5.78736,2539.7,2539.6,0.00590586]
[1750033271486,5.78736,2539.7,2539.2,4.18478455]
[1750033271487,0.78748,2539.3,2539.2,3.2078]
[1750033271685,1.96848,2539.6,2539.1,2.23007673]
[1750033271686,0.78751,2539.2,2539.1,2.23007673]
[1750033272985,2.63962,2539.3,2538.9,0.00590586]
[1750033273284,0.78758,2539.0,2538.9,2.23598259]
[1750033273994,0.78758,2539.0,2538.9,3.02359259]
[1750033274290,1.47236,2539.1,2538.9,3.02357259]
[1750033274588,0.6848,2539.1,2539.0,0.78758]
[1750033274789,0.78752,2539.2,2539.0,0.78758]
[1750033274989,0.78752,2539.2,2539.1,2.23007673]
[1750033275391,0.78755,2539.1,2539.0,2.23007673]
[1750033275691,0.78755,2539.1,2539.0,3.01765673]
[1750033275891,0.78755,2539.1,2539.0,2.23007673]
[1750033276890,0.78755,2539.1,2539.0,3.01765673]
[1750033277395,0.00590586,2539.4,2539.0,2.23007673]
[1750033277594,0.79337586,2539.4,2539.3,0.78748]
[1750033277793,0.00590586,2539.4,2539.3,0.78748]
[1750033279288,0.00590586,2539.4,2539.3,2.09458]
[1750033280792,0.6898,2539.7,2539.6,0.78739]
[1750033280989,0.6898,2539.7,2539.6,3.01746673]
[1750033281292,0.6898,2539.7,2539.6,0.78739]
[1750033281488,0.6898,2539.7,2539.6,3.01746673]
[1750033281692,6.391,2540.2,2539.9,0.7873]
[1750033281891,6.391,2540.2,2539.9,2.23007673]
[1750033282095,0.78727,2540.0,2539.9,2.23007673]
[1750033282595,0.78727,2540.0,2539.5,2.23007673]
[1750033282596,3.2078,2540.0,2539.5,2.23007673]
[1750033282785,0.78735,2539.8,2539.7,3.01742673]
[1750033283092,0.78733,2539.8,2539.7,3.01741673]
[1750033283491,1.46802,2539.9,2539.8,0.78733]
[1750033283687,1.46802,2539.9,2539.7,3.01741673]
[1750033283994,0.6807,2539.9,2539.8,0.78733]
[1750033284188,0.78733,2539.8,2539.7,3.01741673]
[1750033284598,1.46802,2539.9,2539.8,0.78733]
[1750033285198,0.78733,2539.8,2539.7,3.01740673]
[1750033286492,1.46801,2539.9,2539.8,0.78733]
[1750033286692,0.78733,2539.8,2539.7,3.01741673]
[1750033289194,1.46802,2539.9,2539.8,0.78733]
[1750033289408,0.78733,2539.8,2539.7,3.01740673]
[1750033289890,0.78733,2539.8,2539.7,2.23007673]
[1750033290291,1.96839,2539.8,2539.3,11.82887673]
[1750033290591,0.78745,2539.4,2539.3,6.22534673]
[1750033290790,0.78745,2539.4,2539.3,3.01754673]
[1750033291906,0.78744,2539.5,2539.4,0.78743]
[1750033292095,0.78744,2539.5,2539.4,3.01750673]
[1750033292992,0.78741,2539.6,2539.5,0.78741]
[1750033293700,0.78744,2539.5,2539.4,3.01750673]
[1750033294100,3.99521,2539.6,2539.5,0.78742]
[1750033295296,0.78742,2539.5,2539.4,3.01750673]
[1750033295802,0.78742,2539.5,2539.4,3.08488079]
[1750033296204,0.78742,2539.5,2539.4,0.85480406]
[1750033296404,0.78742,2539.5,2539.4,3.08488079]
[1750033300207,0.78742,2539.5,2539.4,0.06737406]
[1750033300504,2.10072,2539.5,2539.4,0.06737406]
[1750033302006,0.78742,2539.5,2539.4,3.08487079]
[1750033303616,3.2078,2539.6,2539.5,0.78742]
[1750033304001,3.99519,2539.6,2539.5,0.78742]
[1750033304201,4.67581,2539.9,2539.4,2.29745079]
[1750033304410,0.6807,2539.9,2539.8,3.01740673]
[1750033305013,1.41848,2540.0,2539.9,0.7873]
[1750033305216,0.78736,2539.7,2539.6,0.78738]
[1750033305603,0.78735,2539.8,2539.7,0.78735]
[1750033305805,0.78736,2539.7,2539.6,3.01744673]
[1750033306010,0.78735,2539.8,2539.7,0.78735]
[1750033306620,2.06851,2539.9,2539.8,0.78733]
[1750033306920,2.06851,2539.9,2539.8,3.01740673]
[1750033307417,0.78731,2539.9,2539.8,3.01740673]
[1750033307618,4.62629,2540.0,2539.9,0.7873]
[1750033308208,0.7873,2539.9,2539.8,3.01738673]
[1750033308613,4.62629,2540.0,2539.9,0.7873]
[1750033312019,3.839,2540.0,2539.9,0.7873]
[1750033312222,3.2078,2540.0,2539.9,1.4624]
[1750033312919,3.2078,2540.0,2539.9,2.8172]
[1750033313821,0.00590586,2540.3,2540.2,0.78721]
[1750033314519,0.00590586,2540.3,2540.2,2.81171]
[1750033315031,0.00590586,2540.3,2540.2,6.01951]
[1750033316331,3.2078,2540.9,2540.3,1.96794]
[1750033316519,0.78698,2541.0,2540.9,0.78699]
[1750033316520,0.6611,2541.0,2540.9,0.78699]
[1750033317224,3.2078,2541.6,2540.8,8.03527673]
[1750033317527,0.00590586,2541.2,2541.1,0.78693]
[1750033317825,0.00590586,2541.2,2541.1,3.01700673]
[1750033319024,0.00590586,2541.2,2541.1,6.22480673]
[1750033321533,1.2958,2541.8,2541.7,0.78674]
[1750033321727,3.2078,2542.2,2541.7,2.23007673]
[1750033322030,1.2662,2542.3,2542.1,3.01666673]
[1750033322031,0.78657,2542.3,2542.1,3.01666673]
[1750033322226,0.78659,2542.2,2542.1,2.23007673]
[1750033323332,0.78659,2542.2,2541.9,0.00590586]
[1750033323333,0.78665,2542.0,2541.9,0.00590586]
[1750033323531,4.15857673,2542.1,2541.5,0.7868]
[1750033323723,0.78673,2541.8,2541.7,2.23007673]
[1750033324036,5.1363,2542.1,2541.7,3.01680673]
[1750033324037,0.7867,2541.9,2541.7,3.01680673]
[1750033324728,0.78671,2541.8,2541.7,2.23007673]
[1750033324931,3.99451,2541.8,2541.7,2.23007673]
[1750033325528,0.78671,2541.8,2541.7,2.23007673]
[1750033326620,0.78671,2541.8,2541.5,0.00590586]
[1750033326621,0.78677,2541.6,2541.5,2.23598259]
[1750033326826,2.78976,2541.7,2541.5,3.02278259]
[1750033327127,1.47656,2541.7,2541.6,2.23007673]
[1750033327628,0.6898,2541.7,2541.6,2.23007673]
[1750033327927,1.47654,2541.7,2541.6,2.23007673]
[1750033328532,0.6898,2541.7,2541.6,3.01684673]
[1750033328737,3.2078,2541.8,2541.7,0.78674]
[1750033329835,2.06957,2542.0,2541.6,4.46015346]
[1750033330034,2.08814,2542.1,2541.9,3.01675673]
[1750033330237,0.78665,2542.0,2541.9,2.23007673]
[1750033331339,2.11185,2542.0,2541.9,2.23007673]
[1750033332537,2.11185,2542.0,2541.9,3.01675673]
[1750033333041,0.78668,2541.9,2541.8,0.85669]
[1750033333241,0.78668,2541.9,2541.8,3.08676673]
[1750033334041,1.3015,2542.1,2542.0,0.78665]
[1750033334242,3.99437,2542.3,2542.2,0.78659]
[1750033334243,3.2078,2542.3,2542.2,0.78659]
[1750033334536,3.2078,2542.3,2542.2,3.01666673]
[1750033334746,0.00590586,2542.4,2542.3,0.78655]
[1750033336240,3.2078,2542.7,2542.6,0.78646]
[1750033336943,0.78641,2542.8,2542.7,0.78643]
[1750033337644,0.78641,2542.8,2542.7,2.23007673]
[1750033337938,0.78641,2542.8,2542.7,3.01650673]
[1750033338340,0.78641,2542.8,2542.7,2.23007673]
[1750033340337,0.78641,2542.8,2542.7,2.29745079]
[1750033341447,2.15308,2542.9,2542.8,0.7864]
[1750033341846,0.7864,2542.8,2542.7,2.29745079]
[1750033342450,0.7864,2542.8,2542.7,3.08388079]
[1750033342646,0.00590586,2543.0,2542.9,0.78637]
[1750033342849,0.79224586,2543.0,2542.9,3.01644673]
[1750033343040,0.00590586,2543.0,2542.9,3.01644673]
[1750033343247,0.00590586,2543.0,2542.9,9.35844673]
[1750033343545,1.2606,2543.7,2543.0,1.96585]
[1750033343742,1.2606,2543.7,2543.6,2.23007673]
[1750033343743,2.04675,2543.7,2543.6,2.23007673]
[1750033344145,1.2606,2543.7,2543.6,2.23007673]
[1750033344347,2.04672,2543.7,2543.6,2.23007673]
[1750033345146,2.04672,2543.7,2543.4,0.79210586]
[1750033345147,0.78618,2543.5,2543.4,0.00590586]
[1750033345345,10.33498,2543.5,2543.4,5.86e-06]
[1750033345552,15.33498,2543.5,2543.4,5.86e-06]
[1750033345744,17.62948186,2543.5,2543.4,5.86e-06]
[1750033350354,17.6309445,2543.5,2543.4,5.86e-06]
[1750033355548,17.6309445,2543.5,2543.4,0.06737992]
[1750033355750,0.78643,2542.7,2542.6,0.012]
[1750033359154,0.78649,2542.5,2542.4,0.00590586]
[1750033359347,3.99429,2542.5,2542.4,0.00590586]
[1750033360851,1.96637,2542.4,2541.8,4.52468386]
[1750033361046,0.78664,2542.1,2541.9,0.78666]
[1750033361253,0.78664,2542.1,2542.0,0.78665]
[1750033361653,0.78665,2542.0,2541.9,2.11916]
[1750033363852,0.78668,2541.9,2541.8,0.07]
[1750033364257,0.78671,2541.8,2541.7,3.21370586]
[1750033364652,0.78671,2541.8,2541.7,0.00590586]
[1750033366158,0.78671,2541.8,2541.7,0.79264586]
[1750033366661,0.78671,2541.8,2541.7,0.00590586]
[1750033367959,0.78671,2541.8,2541.7,0.79264586]
[1750033368261,0.78671,2541.8,2541.7,0.00590586]
[1750033368562,0.78671,2541.8,2541.7,0.79264586]
[1750033369060,0.78671,2541.8,2541.7,0.00590586]
[1750033369858,0.78671,2541.8,2541.7,0.07327992]
[1750033370059,0.78671,2541.8,2541.7,0.86001992]
[1750033371065,0.78671,2541.8,2541.7,3.08866949]
[1750033372358,0.78671,2541.8,2541.7,2.30192949]
[1750033374561,0.78671,2541.8,2541.7,3.08866949]
[1750033375269,0.78671,2541.8,2541.7,2.30192949]
[1750033375457,5.78671,2541.8,2541.7,0.07327992]
[1750033375660,8.99451,2541.8,2541.7,0.07327992]
[1750033375863,10.30401,2541.8,2541.7,0.07327992]
[1750033376669,5.30401,2541.8,2541.7,0.07327992]
[1750033377066,3.99451,2541.8,2541.7,2.30192949]
[1750033377372,10.35151,2541.8,2541.7,2.30192949]
[1750033378667,1.96686,2541.7,2541.3,2.22864957]
[1750033378969,1.96686,2541.7,2541.2,1.2447]
[1750033378970,0.78686,2541.3,2541.2,1.2447]
[1750033379167,0.78686,2541.3,2541.2,3.47334957]
[1750033379869,0.78686,2541.3,2541.2,2.22864957]
[1750033380075,3.2078,2541.4,2541.0,0.00590586]
[1750033380270,0.78693,2541.1,2541.0,0.00590586]
[1750033380665,3.99473,2541.1,2541.0,0.00590586]
[1750033380968,3.2078,2541.1,2540.9,2.22864957]
[1750033381870,0.78696,2541.0,2540.9,2.22864957]
[1750033383070,2.64082,2541.2,2540.9,2.22864957]
[1750033383071,0.6735,2541.2,2540.9,2.22864957]
[1750033383273,0.7869,2541.2,2541.1,2.22864957]
[1750033384375,0.7869,2541.2,2541.1,3.01557957]
[1750033384578,0.7869,2541.2,2541.1,2.22864957]
[1750033384876,0.7869,2541.2,2541.1,4.45941252]
[1750033385576,0.7869,2541.2,2541.1,5.24634252]
[1750033385763,0.78689,2541.3,2541.1,4.45941252]
[1750033385968,0.7869,2541.2,2541.1,5.24632252]
[1750033386275,3.8592,2541.4,2541.1,4.45941252]
[1750033386572,3.2078,2541.4,2541.3,0.78686]
[1750033387371,3.99463,2541.4,2541.3,0.78686]
[1750033388277,0.78686,2541.3,2541.2,1.3089]
[1750033388467,3.2078,2541.4,2541.2,2.09576]
[1750033388664,3.99465,2541.4,2541.2,2.09578]
[1750033388870,3.2078,2541.4,2541.3,0.78686]
[1750033389366,3.99463,2541.4,2541.3,0.78686]
[1750033390074,0.78683,2541.4,2541.3,0.78686]
[1750033391374,0.78686,2541.3,2541.2,2.09578]
[1750033392475,0.78689,2541.2,2541.1,5.24632252]
[1750033392980,0.78689,2541.3,2541.2,0.78688]
[1750033393371,0.7869,2541.2,2541.1,5.24631252]
[1750033393880,0.78688,2541.3,2541.2,0.78688]
[1750033394472,0.78685,2541.4,2541.3,0.78685]
[1750033395183,0.78686,2541.3,2541.2,2.07068]
[1750033396077,0.78684,2541.5,2541.4,0.78682]
[1750033396375,0.78684,2541.5,2541.4,5.24623252]
[1750033396568,7.15469,2541.8,2541.4,5.24623252]
[1750033396569,4.62714,2541.8,2541.7,0.78674]
[1750033396773,4.62714,2541.8,2541.7,5.24615252]
[1750033397573,1.96686,2541.7,2541.4,4.45941252]
[1750033397877,0.7868,2541.5,2541.4,5.24624252]
[1750033398273,0.78679,2541.6,2541.5,0.78678]
[1750033398478,0.78675,2541.7,2541.6,0.78674]
[1750033398677,0.78677,2541.6,2541.5,6.51979252]
[1750033399286,0.78677,2541.6,2541.5,5.08491252]
[1750033400180,0.78677,2541.6,2541.5,5.87171252]
[1750033400384,0.78677,2541.6,2541.5,5.08491252]
[1750033402184,0.78677,2541.6,2541.5,5.87171252]
[1750033403989,0.78677,2541.6,2541.5,5.08491252]
[1750033404282,0.78677,2541.6,2541.5,5.87171252]
[1750033404485,6.373,2542.1,2541.5,5.87171252]
[1750033404486,9.5808,2542.1,2541.7,0.78672]
[1750033404681,0.78672,2541.8,2541.7,4.45941252]
[1750033405281,0.78672,2541.8,2541.7,5.31352658]
[1750033405687,0.7867,2541.9,2541.8,0.7867]
[1750033405883,9.5808,2542.1,2541.7,4.52678658]
[1750033406086,0.78669,2541.9,2541.8,0.78669]
[1750033406890,0.78669,2541.9,2541.8,3.01505531]
[1750033407592,0.78669,2541.9,2541.8,2.22836531]
[1750033408084,0.78671,2541.8,2541.7,0.06737406]
[1750033408295,5.30551,2541.8,2541.7,0.06737406]
[1750033408480,6.26700456,2541.8,2541.7,0.06737406]
[1750033408680,7.58690456,2541.8,2541.7,0.06737406]
[1750033409380,0.78671,2541.8,2541.7,0.06737406]
[1750033410193,5.27974,2542.1,2542.0,0.78665]
[1750033410495,5.27974,2542.1,2542.0,2.22836531]
[1750033413594,4.4931,2542.1,2542.0,3.01501531]
[1750033414286,3.2078,2542.1,2542.0,3.01501531]
[1750033415384,3.99442,2542.1,2542.0,3.01501531]
[1750033415687,0.78662,2542.1,2542.0,3.08238937]
[1750033416990,3.21370586,2542.2,2542.1,0.78662]
[1750033416991,4.00031586,2542.2,2542.1,0.78662]
[1750033417293,0.78662,2542.1,2542.0,3.08236937]
[1750033418587,0.78662,2542.1,2542.0,2.29573937]
[1750033418790,2.15062,2542.1,2542.0,2.29573937]
[1750033419196,0.78668,2541.9,2541.8,2.22836531]
[1750033419390,3.99448,2541.9,2541.8,3.01507531]
[1750033419794,3.99448,2541.9,2541.8,2.22836531]
[1750033420293,5.35848,2541.9,2541.8,3.01507531]
[1750033421289,5.35848,2541.9,2541.8,2.22836531]
[1750033421489,6.53855,2541.9,2541.5,2.33774961]
[1750033421687,0.78683,2541.4,2541.3,6.22302531]
[1750033421888,0.78683,2541.4,2541.3,5.43616531]
[1750033422593,0.78683,2541.4,2541.3,2.22836531]
[1750033422788,0.6477,2541.6,2541.5,0.7868]
[1750033422990,0.6344,2541.8,2541.5,0.7868]
[1750033422991,3.2078,2542.0,2541.5,4.45673062]
[1750033423295,3.99445,2542.0,2541.9,2.22836531]
[1750033423493,4.95521105,2542.0,2541.9,2.22836531]
[1750033427600,1.74741105,2542.0,2541.9,2.22836531]
[1750033427799,4.95521105,2542.0,2541.9,2.22836531]
[1750033428297,0.78674,2541.7,2541.6,2.22836531]
[1750033432706,0.78674,2541.7,2541.6,3.01513531]
[1750033432898,6.338,2541.9,2541.8,0.7867]
[1750033432899,0.7867,2541.9,2541.8,0.7867]
[1750033433094,3.2078,2542.0,2541.9,0.78668]
[1750033433295,3.2078,2542.0,2541.9,3.01504531]
[1750033433800,0.00590586,2542.2,2542.1,0.78661]
[1750033434101,0.79248586,2542.2,2542.1,3.01497531]
[1750033434900,0.79248586,2542.2,2542.1,2.22836531]
[1750033435295,0.79248586,2542.2,2542.1,3.01497531]
[1750033435503,0.00590586,2542.2,2542.1,3.01497531]
[1750033435707,0.78641,2542.8,2542.2,1.96647]
[1750033435895,3.2078,2542.9,2542.8,0.7864]
[1750033436099,3.99419,2542.9,2542.7,3.01478531]
[1750033436793,3.99419,2542.9,2542.6,2.0292]
[1750033436794,3.2078,2542.9,2542.8,5.23939135]
[1750033437212,3.99417,2542.9,2542.8,4.45299135]